bitfinex-derivatives/quotes_SOLF0:USTF0_20260220
["timestamp","ask_amount","ask_price","bid_price","bid_amount"]
[1771610028458,17.49538764,84.399,84.331,16.28309132]
[1771610028957,9.61297082,84.44,84.351,15.82264137]
[1771610029154,17.49538764,84.439,84.351,15.82264137]
[1771610029663,17.49538764,84.439,84.331,166.0614]
[1771610029664,17.49538764,84.439,84.371,15.82264137]
[1771610030659,17.49538764,84.439,84.354,15.82793608]
[1771610031357,17.49538764,84.419,84.354,15.82793608]
[1771610031559,17.49538764,84.419,84.331,16.11888528]
[1771610031953,17.49538764,84.415,84.356,10.6722]
[1771610032357,17.49538764,84.415,84.365,10.6711]
[1771610033167,17.49538764,84.415,84.374,10.6698]
[1771610033368,17.49538764,84.415,84.351,16.1241992]
[1771610033767,17.49538764,84.415,84.373,10.67]
[1771610034165,17.49538764,84.433,84.373,10.67]
[1771610034562,17.49538764,84.433,84.385,10.6685]
[1771610036272,17.49538764,84.471,84.391,16.14530945]
[1771610036669,9.61297082,84.48,84.391,16.14530945]
[1771610036670,17.49538764,84.468,84.391,16.14530945]
[1771610036976,17.49538764,84.468,84.371,15.62236145]
[1771610038678,17.49538764,84.453,84.394,10.6673]
[1771610039476,17.49538764,84.453,84.402,10.6663]
[1771610039675,17.49538764,84.453,84.389,15.63676498]
[1771610039973,17.49538764,84.453,84.391,15.64123643]
[1771610040373,17.49538764,84.472,84.391,15.64123643]
[1771610040976,17.49538764,84.468,84.416,10.6646]
[1771610041582,17.49538764,84.486,84.411,15.6796988]
[1771610042277,17.49538764,84.486,84.41,9.61297082]
[1771610042278,17.49538764,84.504,84.432,15.68414711]
[1771610042681,10.6513,84.522,84.471,10.6577]
[1771610042876,17.49538764,84.521,84.45,15.68414711]
[1771610043275,9.61297082,84.54,84.45,15.68414711]
[1771610043276,17.49538764,84.506,84.45,15.68414711]
[1771610043484,17.49538764,84.539,84.451,15.69107114]
[1771610043783,17.49538764,84.523,84.451,15.69107114]
[1771610044373,17.49538764,84.52,84.468,10.6581]
[1771610044578,17.49538764,84.52,84.451,15.69107114]
[1771610045375,17.49538764,84.518,84.432,15.82941451]
[1771610045878,10.654,84.501,84.449,10.6604]
[1771610046885,10.6542,84.499,84.449,10.6604]
[1771610048887,18.16491899,84.5,84.46,10.659]
[1771610049184,18.75369896,84.529,84.451,15.86084802]
[1771610049685,18.75369896,84.526,84.451,15.86084802]
[1771610049882,18.75369896,84.526,84.471,15.86103817]
[1771610050287,18.75369896,84.544,84.489,10.6553]
[1771610050585,18.75369896,84.544,84.471,15.86103817]
[1771610051390,18.75369896,84.544,84.492,10.6549]
[1771610052097,18.75369896,84.541,84.483,10.6561]
[1771610052689,10.6506,84.528,84.474,10.6572]
[1771610052889,18.75369896,84.527,84.451,15.86338801]
[1771610053392,18.75369896,84.518,84.451,15.86338801]
[1771610053991,18.75369896,84.518,84.464,10.6586]
[1771610054190,18.75369896,84.539,84.451,15.86338801]
[1771610054396,18.75369896,84.539,84.461,15.87683819]
[1771610054790,29.40289896,84.539,84.49,10.6552]
[1771610054996,18.75369896,84.539,84.461,15.87683819]
[1771610055394,18.75369896,84.55,84.461,15.87683819]
[1771610055694,18.75369896,84.55,84.481,15.46177414]
[1771610056398,8.54411955,84.605,84.46,9.59556765]
[1771610056399,18.75369896,84.548,84.46,9.59556765]
[1771610056994,18.75369896,84.539,84.46,9.59556765]
[1771610057293,18.75369896,84.517,84.44,15.96925427]
[1771610057692,18.75369896,84.503,84.451,10.6602]
[1771610057893,18.75369896,84.503,84.44,15.96925427]
[1771610058088,18.75369896,84.527,84.441,15.97294548]
[1771610058293,18.75369896,84.517,84.441,15.97294548]
[1771610059595,18.75369896,84.517,84.461,10.6589]
[1771610059799,18.75369896,84.536,84.441,15.97294548]
[1771610060498,10.6509,84.525,84.475,10.6571]
[1771610060804,18.75369896,84.524,84.441,15.97294548]
[1771610061002,10.96026289,84.587,84.43,9.59556765]
[1771610061003,10.6498,84.534,84.451,15.9248151]
[1771610061299,18.75369896,84.543,84.451,15.9248151]
[1771610061693,10.6497,84.535,84.49,10.6552]
[1771610061992,18.75369896,84.543,84.469,15.92833557]
[1771610062200,18.75369896,84.543,84.471,15.93167811]
[1771610062402,18.75369896,84.579,84.471,15.93167811]
[1771610063101,10.6467,84.559,84.51,10.6527]
[1771610063399,18.75369896,84.558,84.49,15.93772476]
[1771610063994,18.75369896,84.555,84.502,10.6537]
[1771610064904,18.75369896,84.538,84.462,15.94113095]
[1771610065402,29.40369896,84.532,84.481,10.6564]
[1771610065597,18.75369896,84.531,84.481,10.6564]
[1771610066096,18.75369896,84.531,84.462,15.94113095]
[1771610066097,10.6503,84.53,84.489,10.6553]
[1771610066296,18.75369896,84.531,84.489,10.6553]
[1771610066502,18.75369896,84.531,84.462,15.94113095]
[1771610066900,18.75369896,84.531,84.491,10.6551]
[1771610067202,18.75369896,84.531,84.462,15.94113095]
[1771610067404,18.75369896,84.531,84.443,15.98855253]
[1771610067708,18.75369896,84.529,84.443,15.98855253]
[1771610068699,10.6518,84.518,84.472,10.6575]
[1771610069102,18.75369896,84.517,84.472,10.6575]
[1771610069299,10.652,84.516,84.464,10.6585]
[1771610069501,18.75369896,84.536,84.451,15.86064258]
[1771610069804,21.2913,84.567,84.476,10.6571]
[1771610069805,18.75369896,84.52,84.476,10.6571]
[1771610069999,18.75369896,84.52,84.451,15.86064258]
[1771610070202,18.75369896,84.52,84.478,10.6567]
[1771610071603,18.75369896,84.536,84.469,15.99255388]
[1771610072207,18.75369896,84.533,84.484,10.656]
[1771610072403,18.75369896,84.529,84.451,15.99515129]
[1771610072701,18.75369896,84.529,84.431,15.99515129]
[1771610073007,18.75369896,84.506,84.431,15.99515129]
[1771610073903,18.75369896,84.502,84.451,10.6602]
[1771610074109,18.75369896,84.502,84.431,15.99515129]
[1771610074505,18.75369896,84.498,84.451,10.6602]
[1771610074705,18.75369896,84.498,84.431,15.99515129]
[1771610075107,18.75369896,84.497,84.413,16.32348596]
[1771610075504,18.75369896,84.479,84.395,16.32348596]
[1771610076706,18.75369896,84.456,84.402,10.6663]
[1771610076903,18.75369896,84.456,84.395,16.32348596]
[1771610077210,18.75369896,84.456,84.41,10.6653]
[1771610078207,18.75369896,84.456,84.395,16.32348596]
[1771610078999,17.54725288,84.474,84.395,16.32348596]
[1771610079201,17.54725288,84.494,84.395,16.32348596]
[1771610079404,17.54725288,84.494,84.385,165.955]
[1771610079405,17.54725288,84.494,84.411,16.3825504]
[1771610079805,17.54725288,84.482,84.43,10.6628]
[1771610080005,17.54725288,84.482,84.411,16.3825504]
[1771610080206,17.54725288,84.479,84.426,10.6633]
[1771610080607,17.54725288,84.479,84.411,16.3825504]
[1771610080804,17.54725288,84.479,84.431,10.6627]
[1771610081816,17.54725288,84.475,84.421,10.6639]
[1771610082016,17.54725288,84.475,84.411,16.3825504]
[1771610082914,17.54725288,84.474,84.429,10.663]
[1771610083112,17.54725288,84.474,84.411,16.3825504]
[1771610083817,28.20455288,84.474,84.428,10.663]
[1771610084916,17.54725288,84.47,84.418,10.6643]
[1771610085321,17.54725288,84.47,84.391,16.44709901]
[1771610085616,17.54725288,84.465,84.391,16.44709901]
[1771610087714,17.54725288,84.465,84.401,16.49028066]
[1771610088914,17.54725288,84.463,84.42,10.6641]
[1771610090525,17.54725288,84.463,84.426,10.6633]
[1771610090915,17.54725288,84.463,84.401,16.49028066]
[1771610091516,10.6601,84.452,84.401,16.49028066]
[1771610091712,17.54725288,84.463,84.401,16.49028066]
[1771610092112,17.54725288,84.463,84.427,10.6631]
[1771610092317,17.54725288,84.463,84.401,16.49028066]
[1771610092513,17.54725288,84.48,84.401,16.49028066]
[1771610093623,17.54725288,84.47,84.401,16.49028066]
[1771610094018,17.54725288,84.468,84.422,10.6639]
[1771610095719,17.54725288,84.466,84.422,10.6639]
[1771610096622,17.54725288,84.464,84.422,10.6639]
[1771610097926,17.54725288,84.464,84.429,10.6629]
[1771610099522,17.54725288,84.479,84.403,16.40123213]
[1771610100429,17.54725288,84.457,84.403,16.40123213]
[1771610100824,17.54725288,84.478,84.437,10.6619]
[1771610101024,17.54725288,84.478,84.421,16.66521157]
[1771610101224,17.54725288,84.499,84.421,16.66521157]
[1771610101930,17.54725288,84.499,84.44,16.66538296]
[1771610102533,17.54725288,84.511,84.44,16.66538296]
[1771610102724,17.54725288,84.509,84.44,16.66538296]
[1771610103230,17.54725288,84.503,84.46,10.6591]
[1771610104133,17.54725288,84.5,84.46,10.6591]
[1771610104531,17.54725288,84.481,84.42,16.13337841]
[1771610105131,17.54725288,84.481,84.443,10.6611]
[1771610105330,17.54725288,84.481,84.42,16.13337841]
[1771610105533,17.54725288,84.481,84.404,16.07918083]
[1771610105724,17.54725288,84.481,84.432,10.6625]
[1771610106132,17.54725288,84.504,84.404,16.07918083]
[1771610106436,17.54725288,84.504,84.421,16.08157913]
[1771610106635,17.54725288,84.504,84.425,16.06880726]
[1771610106835,18.4137881,84.521,84.457,16.06880726]
[1771610108137,19.13003432,84.538,84.48,16.54110061]
[1771610108327,19.13003432,84.538,84.434,16.54110061]
[1771610108530,8.53259863,84.567,84.434,16.54110061]
[1771610108531,19.13003432,84.519,84.434,16.54110061]
[1771610108733,10.6532,84.507,84.464,10.6585]
[1771610108931,19.13003432,84.479,84.391,17.65843408]
[1771610109246,19.13003432,84.409,84.318,17.65843408]
[1771610109536,19.13003432,84.329,84.256,35.52]
[1771610109734,9.59556765,84.35,84.213,18.16550438]
[1771610109735,19.13003432,84.309,84.213,18.16550438]
[1771610110131,19.13003432,84.289,84.187,18.16550438]
[1771610110341,10.6828,84.273,84.187,18.16550438]
[1771610110533,19.13003432,84.279,84.195,18.16550438]
[1771610110734,8.58217533,84.321,84.19,9.59556765]
[1771610110735,10.6785,84.307,84.211,18.16550438]
[1771610111039,9.59556765,84.3,84.215,10.69]
[1771610111336,166.034,84.346,84.211,18.16550438]
[1771610111337,22.284564,84.363,84.24,9.59556765]
[1771610111536,22.284564,84.359,84.261,10.6842]
[1771610111742,34.04499714,84.359,84.261,10.6842]
[1771610112040,22.28330167,84.422,84.28,9.59556765]
[1771610112238,22.28330167,84.399,84.3,9.59556765]
[1771610112434,22.28330167,84.389,84.3,9.59556765]
[1771610112631,22.28330167,84.389,84.293,10.6801]
[1771610112834,9.59556765,84.42,84.28,9.59556765]
[1771610112835,22.28330167,84.359,84.28,9.59556765]
[1771610113046,22.28330167,84.359,84.27,10.6831]
[1771610113238,26.4299214,84.339,84.24,9.59556765]
[1771610113636,26.4299214,84.339,84.262,10.684]
[1771610113832,26.4299214,84.339,84.26,9.59556765]
[1771610114037,26.4299214,84.339,84.24,9.59556765]
[1771610114335,9.59556765,84.38,84.28,9.59556765]
[1771610114643,26.43221449,84.384,84.3,9.59556765]
[1771610114839,26.43221449,84.429,84.34,9.59556765]
[1771610115041,26.43221449,84.429,84.32,9.59556765]
[1771610115241,25.01176095,84.409,84.32,9.59556765]
[1771610115546,25.01176095,84.429,84.34,9.59556765]
[1771610116039,25.01202775,84.425,84.34,9.59556765]
[1771610116239,25.01202775,84.389,84.256,166.2084]
[1771610116451,25.01202775,84.349,84.26,9.59556765]
[1771610116739,25.01202775,84.329,84.24,9.59556765]
[1771610117047,24.54845303,84.349,84.26,9.59556765]
[1771610117234,24.54845303,84.349,84.275,10.6824]
[1771610117433,9.59556765,84.37,84.28,9.59556765]
[1771610117640,34.14402068,84.37,84.28,9.59556765]
[1771610117939,34.14402068,84.37,84.257,166.2069]
[1771610117940,24.54845303,84.37,84.303,10.6789]
[1771610118344,10.6664,84.402,84.321,10.6766]
[1771610118541,24.54809119,84.401,84.321,10.6766]
[1771610118941,24.95924677,84.399,84.321,10.6766]
[1771610119143,24.95924677,84.389,84.307,10.6784]
[1771610119447,24.95924677,84.369,84.29,9.63808841]
[1771610120035,24.95924677,84.369,84.293,10.6801]
[1771610120241,24.95924677,84.369,84.27,9.63808841]
[1771610120547,24.95943116,84.349,84.27,9.63808841]
[1771610120846,24.95943116,84.349,84.295,10.6798]
[1771610121039,9.63808841,84.37,84.295,10.6798]
[1771610121347,24.95086665,84.369,84.308,10.6782]
[1771610121737,24.95086665,84.369,84.29,9.63808841]
[1771610121945,24.95086665,84.369,84.32,10.6767]
[1771610122545,24.95086665,84.369,84.306,10.6785]
[1771610123048,24.95086665,84.369,84.276,166.17]
[1771610123247,25.00118734,84.396,84.29,24.5943916]
[1771610123639,25.00118734,84.396,84.318,10.6769]
[1771610123839,25.00118734,84.396,84.29,24.5943916]
[1771610124247,25.00141551,84.393,84.316,10.6772]
[1771610124445,25.00141551,84.393,84.29,24.5943916]
[1771610125343,24.99434673,84.414,84.31,24.5943916]
[1771610125542,24.99434673,84.414,84.33,24.5943916]
[1771610126238,24.99434673,84.414,84.31,24.5943916]
[1771610127443,24.99434673,84.414,84.351,10.6728]
[1771610127645,24.99434673,84.414,84.31,24.5943916]
[1771610128046,24.92112172,84.412,84.339,10.6743]
[1771610128248,24.92112172,84.412,84.31,24.5943916]
[1771610128749,24.92112172,84.449,84.33,24.5943916]
[1771610129350,24.5943916,84.47,84.33,24.5943916]
[1771610129351,24.8410367,84.437,84.375,10.6698]
[1771610131351,24.5943916,84.49,84.371,9.73907944]
[1771610131847,10.6577,84.472,84.404,10.6661]
[1771610132242,24.5943916,84.49,84.371,9.73907944]
[1771610132445,11.65625633,84.495,84.371,9.73907944]
[1771610132446,24.5943916,84.47,84.371,9.73907944]
[1771610132646,24.5943916,84.47,84.351,9.79764482]
[1771610133154,24.5943916,84.45,84.363,10.6713]
[1771610133358,19.13003432,84.449,84.363,10.6713]
[1771610133850,24.5943916,84.45,84.363,10.6713]
[1771610133851,19.13003432,84.435,84.363,10.6713]
[1771610134255,19.13003432,84.435,84.351,9.79764482]
[1771610134758,19.13003432,84.469,84.371,10.02860736]
[1771610135455,19.13003432,84.468,84.4,10.6666]
[1771610135955,10.6594,84.458,84.389,10.668]
[1771610136260,19.13003432,84.457,84.371,10.02860736]
[1771610136452,19.13003432,84.457,84.396,10.6671]
[1771610138059,19.13003432,84.457,84.407,10.6657]
[1771610140360,18.37311839,84.455,84.397,10.6669]
[1771610140561,18.37311839,84.455,84.392,10.1417176]
[1771610141263,18.37311839,84.455,84.406,10.6659]
[1771610142160,18.37311839,84.455,84.395,10.6672]
[1771610142461,18.37311839,84.455,84.372,10.65870505]
[1771610142658,35.52,84.502,84.372,10.65870505]
[1771610142659,18.37311839,84.452,84.372,10.65870505]
[1771610143466,18.37311839,84.452,84.394,10.6674]
[1771610143764,18.37311839,84.452,84.372,10.65870505]
[1771610144063,18.37311839,84.452,84.38,9.61954018]
[1771610144558,18.37311839,84.452,84.381,10.83161099]
[1771610145156,18.37311839,84.45,84.381,10.83161099]
[1771610146260,18.37311839,84.447,84.381,10.83161099]
[1771610146959,18.37311839,84.501,84.401,10.96174351]
[1771610147154,18.37311839,84.489,84.4,9.61954018]
[1771610147363,18.37311839,84.469,84.382,10.96174351]
[1771610147556,18.37311839,84.44,84.386,10.6684]
[1771610148065,18.37311839,84.44,84.363,10.96174351]
[1771610148264,18.37311839,84.44,84.386,10.6684]
[1771610148860,18.37311839,84.44,84.363,10.96174351]
[1771610150464,10.6618,84.439,84.386,10.6684]
[1771610150670,10.6618,84.439,84.363,10.96174351]
[1771610151058,18.37311839,84.436,84.385,10.6685]
[1771610152171,18.37311839,84.483,84.363,10.96174351]
[1771610152366,18.37311839,84.506,84.431,11.39021283]
[1771610153268,18.37311839,84.506,84.461,10.6589]
[1771610153668,18.37311839,84.506,84.47,10.6577]
[1771610153969,18.37311839,84.506,84.431,11.39021283]
[1771610154668,18.37311839,84.506,84.459,10.6592]
[1771610156272,18.37311839,84.506,84.449,10.6604]
[1771610157864,18.37311839,84.506,84.46,10.659]
[1771610158265,18.37311839,84.506,84.431,11.39021283]
[1771610158568,18.37311839,84.527,84.475,10.6571]
[1771610159970,18.37311839,84.524,84.464,10.6585]
[1771610160468,18.37311839,84.495,84.438,10.6618]
[1771610161469,18.37311839,84.495,84.414,14.81617929]
[1771610161470,18.37311839,84.489,84.426,10.6633]
[1771610161669,18.37311839,84.489,84.351,166.0212]
[1771610161670,18.37311839,84.469,84.393,14.8324207]
[1771610161965,18.37311839,84.466,84.406,10.6658]
[1771610162170,18.37311839,84.466,84.373,14.87780261]
[1771610162467,18.37311839,84.446,84.381,10.669]
[1771610162874,18.37311839,84.446,84.373,14.87780261]
[1771610163177,18.37311839,84.469,84.373,14.87780261]
[1771610164072,18.37311839,84.447,84.373,14.87780261]
[1771610164672,18.37311839,84.434,84.374,10.6698]
[1771610164973,18.37311839,84.434,84.36,9.61954018]
[1771610165175,18.37311839,84.434,84.361,14.60722052]
[1771610166669,18.71359575,84.419,84.36,10.6717]
[1771610166868,18.71359575,84.419,84.341,14.7916992]
[1771610167065,9.61954018,84.44,84.373,10.67]
[1771610167066,18.73437979,84.429,84.373,10.67]
[1771610167274,18.73437979,84.429,84.341,14.7916992]
[1771610167674,18.73437979,84.4,84.352,10.6727]
[1771610168087,18.73437979,84.42,84.341,14.86213551]
[1771610169180,18.73437979,84.439,84.368,14.97525395]
[1771610169378,18.73437979,84.439,84.36,9.61954018]
[1771610169780,18.73437979,84.427,84.349,14.97525395]
[1771610170392,18.73437979,84.427,84.386,10.6683]
[1771610170789,18.73437979,84.427,84.36,9.61954018]
[1771610171190,18.73437979,84.427,84.361,14.92484547]
[1771610171993,18.73437979,84.426,84.361,14.92484547]
[1771610172388,18.73437979,84.426,84.38,10.6692]
[1771610172590,18.73437979,84.426,84.361,14.92484547]
[1771610173691,18.73437979,84.426,84.388,10.6682]
[1771610174495,18.73437979,84.426,84.346,21.3469]
[1771610174496,9.61954018,84.42,84.331,14.33693523]
[1771610174691,18.73437979,84.399,84.304,14.96793894]
[1771610174993,18.73437979,84.384,84.338,10.6744]
[1771610175187,18.73437979,84.384,84.304,14.96793894]
[1771610175386,18.73437979,84.384,84.295,14.33693523]
[1771610175387,18.73437979,84.384,84.311,15.00949489]
[1771610175595,18.73437979,84.384,84.346,10.6734]
[1771610177093,18.73437979,84.384,84.338,10.6744]
[1771610177291,18.73437979,84.384,84.311,15.00949489]
[1771610177889,18.73437979,84.384,84.341,10.674]
[1771610178091,18.73437979,84.384,84.311,15.00949489]
[1771610180199,18.73437979,84.384,84.349,10.673]
[1771610181187,10.666,84.406,84.315,20.28480007]
[1771610181394,9.63475272,84.43,84.331,20.28480007]
[1771610181892,165.7934,84.468,84.331,20.28480007]
[1771610181893,9.63475272,84.41,84.331,20.28480007]
[1771610182499,9.63475272,84.43,84.341,20.28480007]
[1771610183296,18.73437979,84.429,84.341,20.28480007]
[1771610183698,18.73437979,84.421,84.341,20.28480007]
[1771610184303,18.73437979,84.421,84.308,14.33693523]
[1771610184304,18.73437979,84.409,84.323,20.28480007]
[1771610185005,18.73437979,84.394,84.323,20.28480007]
[1771610186199,18.73437979,84.394,84.31,21.3561]
[1771610186405,18.73437979,84.394,84.31,41.64090007]
[1771610186600,18.73437979,84.394,84.311,20.28480007]
[1771610186799,18.73437979,84.393,84.311,20.28480007]
[1771610187800,18.73437979,84.39,84.342,10.6739]
[1771610188104,18.73437979,84.413,84.33,20.28480007]
[1771610188298,18.73437979,84.41,84.341,20.28480007]
[1771610188912,10.6668,84.4,84.352,10.6727]
[1771610189104,18.73437979,84.399,84.323,20.28480007]
[1771610189503,18.73437979,84.392,84.344,10.6737]
[1771610190399,18.73437979,84.382,84.305,20.28480007]
[1771610190795,18.73437979,84.382,84.34,10.6742]
[1771610191104,18.73437979,84.382,84.3,9.63475272]
[1771610191302,18.73437979,84.382,84.289,20.28480007]
[1771610191504,18.73437979,84.362,84.322,10.6764]
[1771610191899,18.73437979,84.362,84.301,20.28480007]
[1771610192101,18.73437979,84.38,84.319,20.28480007]
[1771610192297,18.73437979,84.38,84.301,20.28480007]
[1771610192697,18.73437979,84.37,84.301,20.28480007]
[1771610192904,18.73437979,84.409,84.301,20.28480007]
[1771610193202,18.73437979,84.371,84.301,20.28480007]
[1771610193799,12.03598359,84.395,84.246,403.0896]
[1771610193800,18.73437979,84.359,84.282,20.28480007]
[1771610194907,9.63475272,84.37,84.282,20.28480007]
[1771610194908,18.73437979,84.349,84.282,20.28480007]
[1771610195408,18.73437979,84.348,84.303,10.6788]
[1771610195598,18.73437979,84.348,84.282,20.28480007]
[1771610195907,18.73437979,84.343,84.301,10.6791]
[1771610196107,18.73437979,84.343,84.261,20.28480007]
[1771610196504,18.73437979,84.333,84.286,10.681]
[1771610196704,18.73437979,84.333,84.261,20.28480007]
[1771610196905,18.73437979,84.329,84.242,20.28480007]
[1771610197106,20.65249511,84.321,84.269,10.6832]
[1771610197299,20.65249511,84.321,84.261,19.64994347]
[1771610197504,20.65249511,84.34,84.261,19.64994347]
[1771610198103,20.65249511,84.336,84.283,10.6814]
[1771610198303,20.65249511,84.336,84.261,19.64994347]
[1771610198808,20.65249511,84.334,84.281,10.6817]
[1771610199112,20.65249511,84.334,84.261,19.64994347]
[1771610199310,20.65249511,84.334,84.289,10.6806]
[1771610200013,20.65249511,84.334,84.28,10.6818]
[1771610200714,20.65249511,84.334,84.287,10.6809]
[1771610201315,20.65249511,84.324,84.27,10.683]
[1771610201514,20.65249511,84.324,84.241,19.64994347]
[1771610202013,20.65249511,84.313,84.268,10.6833]
[1771610202407,20.65249511,84.313,84.241,19.64994347]
[1771610202611,20.65249511,84.31,84.241,19.64994347]
[1771610205520,20.65249511,84.308,84.26,10.6843]
[1771610205813,20.65249511,84.289,84.205,19.64994347]
[1771610206018,20.65249511,84.289,84.238,10.6871]
[1771610206214,20.65249511,84.289,84.222,19.64994347]
[1771610206415,20.65249511,84.289,84.191,19.64994347]
[1771610206617,9.63475272,84.29,84.219,10.6895]
[1771610206618,20.65249511,84.274,84.219,10.6895]
[1771610206820,20.65249511,84.274,84.191,19.64994347]
[1771610207418,20.65249511,84.295,84.237,10.6872]
[1771610207819,20.65249511,84.348,84.261,19.64994347]
[1771610208022,20.65249511,84.348,84.281,19.64994347]
[1771610208212,20.65249511,84.348,84.246,19.64994347]
[1771610208412,20.65249511,84.348,84.261,19.64994347]
[1771610208820,20.65249511,84.348,84.281,19.64994347]
[1771610209212,20.65249511,84.348,84.301,10.6792]
[1771610210324,20.65249511,84.348,84.281,19.64994347]
[1771610210325,20.65249511,84.348,84.309,10.6781]
[1771610210526,20.65249511,84.366,84.281,19.64994347]
[1771610210718,20.65249511,84.359,84.281,19.64994347]
[1771610211724,20.65249511,84.351,84.295,10.6799]
[1771610212423,20.65249511,84.351,84.304,10.6787]
[1771610212917,20.65249511,84.351,84.312,10.6777]
[1771610213221,9.63475272,84.38,84.281,19.64994347]
[1771610213222,20.65249511,84.371,84.281,19.64994347]
[1771610213426,20.65249511,84.359,84.281,19.64994347]
[1771610214720,20.65249511,84.357,84.301,10.6791]
[1771610215227,20.65249511,84.353,84.292,10.6802]
[1771610215926,20.65249511,84.338,84.282,10.6816]
[1771610216127,20.65249511,84.338,84.262,19.64994347]
[1771610216419,9.63475272,84.34,84.241,19.64994347]
[1771610216420,20.65249511,84.325,84.241,19.64994347]
[1771610216621,20.65249511,84.325,84.207,19.64994347]
[1771610216827,20.65249511,84.319,84.221,19.64994347]
[1771610217327,20.65249511,84.313,84.249,10.6857]
[1771610217527,20.65249511,84.313,84.221,19.64994347]
[1771610217922,20.65249511,84.308,84.252,10.6854]
[1771610218127,20.65249511,84.308,84.221,19.64994347]
[1771610218633,20.65249511,84.308,84.239,19.64994347]
[1771610218817,20.65249511,84.359,84.241,19.64994347]
[1771610219022,20.65249511,84.339,84.241,19.64994347]
[1771610219228,20.65249511,84.316,84.259,10.6844]
[1771610219434,20.65249511,84.316,84.241,19.64994347]
[1771610219726,9.63475272,84.32,84.258,10.6846]
[1771610219727,31.32999511,84.314,84.258,10.6846]
[1771610219917,20.65249511,84.313,84.241,19.64994347]
[1771610220321,20.65249511,84.313,84.264,10.6837]
[1771610220525,20.65249511,84.313,84.241,19.64994347]
[1771610220925,20.65249511,84.339,84.261,19.64994347]
[1771610221424,20.65249511,84.337,84.261,19.64994347]
[1771610221926,20.65249511,84.31,84.23,9.63475272]
[1771610222131,20.65249511,84.349,84.251,19.64994347]
[1771610222429,20.65249511,84.349,84.295,10.6799]
[1771610222926,20.65249511,84.367,84.291,19.64994347]
[1771610223127,14.63307833,84.414,84.291,19.64994347]
[1771610223128,31.32349511,84.366,84.31,10.6779]
[1771610223425,20.65249511,84.366,84.291,19.64994347]
[1771610223631,20.65249511,84.366,84.321,10.6766]
[1771610224631,9.63475272,84.39,84.309,19.64994347]
[1771610224632,20.65249511,84.362,84.309,10.6781]
[1771610225335,20.65249511,84.362,84.289,19.64994347]
[1771610225336,20.65249511,84.359,84.299,10.6793]
[1771610226736,10.6727,84.353,84.299,10.6793]
[1771610227229,9.63475272,84.37,84.289,19.64994347]
[1771610227230,20.89833682,84.347,84.291,10.6804]
[1771610227421,20.89833682,84.347,84.289,19.64994347]
[1771610227826,20.89833682,84.347,84.297,10.6797]
[1771610228233,20.89833682,84.347,84.271,20.10352765]
[1771610228432,10.675,84.335,84.287,10.6809]
[1771610228631,20.89833682,84.334,84.251,20.10352765]
[1771610229330,31.57463682,84.325,84.251,20.10352765]
[1771610230039,20.89833682,84.332,84.276,20.10352765]
[1771610231128,10.6766,84.322,84.278,10.6821]
[1771610231330,20.89833682,84.332,84.278,10.6821]
[1771610231527,20.89833682,84.332,84.251,20.10352765]
[1771610232334,20.89833682,84.332,84.277,10.6822]
[1771610232929,20.89833682,84.35,84.277,20.10352765]
[1771610233333,20.89833682,84.35,84.25,9.63475272]
[1771610233334,20.89833682,84.35,84.251,20.10352765]
[1771610233635,20.89833682,84.339,84.251,20.10352765]
[1771610233833,20.89833682,84.33,84.251,20.10352765]
[1771610234033,20.89833682,84.348,84.251,20.10352765]
[1771610234236,20.89833682,84.348,84.271,20.10352765]
[1771610234440,31.57153682,84.348,84.3,10.6792]
[1771610234636,20.89833682,84.371,84.271,20.10352765]
[1771610234841,20.89833682,84.369,84.291,20.10352765]
[1771610235235,20.89833682,84.367,84.291,20.10352765]
[1771610235836,10.6723,84.356,84.308,10.6783]
[1771610236236,9.63475272,84.38,84.291,20.10352765]
[1771610236237,10.6733,84.348,84.291,20.10352765]
[1771610236841,20.89833682,84.34,84.293,10.6802]
[1771610237035,20.89833682,84.34,84.272,20.10352765]
[1771610237739,20.89833682,84.34,84.298,10.6795]
[1771610238130,10.6744,84.339,84.298,10.6795]
[1771610238335,10.6744,84.339,84.29,10.6805]
[1771610238530,20.89833682,84.34,84.29,10.6805]
[1771610238730,10.6752,84.333,84.29,10.6805]
[1771610239137,20.89833682,84.34,84.272,20.10352765]
[1771610239333,20.89833682,84.358,84.272,20.10352765]
[1771610239536,20.89833682,84.358,84.275,20.10352765]
[1771610239737,20.89833682,84.358,84.315,10.6773]
[1771610240038,31.57033682,84.358,84.315,10.6773]
[1771610240239,20.89833682,84.375,84.316,20.10352765]
[1771610240939,31.56813682,84.375,84.329,10.6755]
[1771610241339,20.89833682,84.375,84.316,20.10352765]
[1771610241538,20.89833682,84.375,84.335,10.6748]
[1771610241938,20.89833682,84.398,84.316,20.10352765]
[1771610242741,10.6679,84.391,84.345,10.6736]
[1771610242943,20.89833682,84.39,84.316,20.10352765]